[Event "*** SCC Grand Prix: Titled Tuesday Blitz"]
[Site "Chess.com"]
[Date "2020.06.23"]
[Round "4"]
[White "rududuyk"]
[Black "Grandmaster2B"]
[Result "0-1"]
[WhiteElo "2157"]
[BlackElo "2420"]
[TimeControl "180+1"]
[EndTime "10:35:51 PDT"]
[Termination "Grandmaster2B won by checkmate"]

1. e4 {[%clk 0:03:00.9]} 1... c5 {[%clk 0:02:59.7]} 2. Nf3 {[%clk 0:02:57.9]}
2... d6 {[%clk 0:02:55.4]} 3. d4 {[%clk 0:02:57.2]} 3... cxd4 {[%clk 0:02:56.3]}
4. Nxd4 {[%clk 0:02:57.3]} 4... Nf6 {[%clk 0:02:48.6]} 5. Nc3 {[%clk 0:02:57.4]}
5... a6 {[%clk 0:02:48.1]} 6. f3 {[%clk 0:02:57]} 6... e5 {[%clk 0:02:47.4]} 7.
Nb3 {[%clk 0:02:56.4]} 7... Be6 {[%clk 0:02:48.3]} 8. Be3 {[%clk 0:02:56.2]}
8... h5 {[%clk 0:02:48.1]} 9. Qd2 {[%clk 0:02:52.9]} 9... Be7 {[%clk 0:02:47.7]}
10. O-O-O {[%clk 0:02:50.1]} 10... Nbd7 {[%clk 0:02:44.2]} 11. h3 {[%clk
0:02:50]} 11... h4 {[%clk 0:02:43.2]} 12. f4 {[%clk 0:02:37.8]} 12... Qc7 {[%clk
0:02:33.7]} 13. f5 {[%clk 0:02:34.6]} 13... Bc4 {[%clk 0:02:32.7]} 14. Bxc4
{[%clk 0:02:10.1]} 14... Qxc4 {[%clk 0:02:33.6]} 15. Kb1 {[%clk 0:01:55.3]}
15... Nxe4 {[%clk 0:02:31.2]} 16. Nxe4 {[%clk 0:01:48.1]} 16... Qxe4 {[%clk
0:02:32.1]} 17. Rhf1 {[%clk 0:01:36.4]} 17... a5 {[%clk 0:02:27.4]} 18. Bg5
{[%clk 0:01:25.4]} 18... a4 {[%clk 0:02:16.5]} 19. Bxe7 {[%clk 0:01:10.5]} 19...
axb3 {[%clk 0:02:14.9]} 20. Qxd6 {[%clk 0:01:00.6]} 20... Qxc2+ {[%clk
0:02:12.9]} 21. Ka1 {[%clk 0:00:58.6]} 21... Rxa2# {[%clk 0:02:13.8]} 0-1

[Event "*** SCC Grand Prix: Titled Tuesday Blitz"]
[Site "Chess.com"]
[Date "2020.06.23"]
[Round "4"]
[White "chigorin28"]
[Black "Grieve72"]
[Result "1-0"]
[WhiteElo "2422"]
[BlackElo "2237"]
[TimeControl "180+1"]
[EndTime "10:36:23 PDT"]
[Termination "chigorin28 won by resignation"]

1. e4 {[%clk 0:03:00.9]} 1... c5 {[%clk 0:02:56.2]} 2. Nf3 {[%clk 0:03:00.7]}
2... e6 {[%clk 0:02:56.4]} 3. c3 {[%clk 0:03:01.1]} 3... Nf6 {[%clk 0:02:55.1]}
4. e5 {[%clk 0:03:01.3]} 4... Nd5 {[%clk 0:02:55.7]} 5. d4 {[%clk 0:03:02.2]}
5... cxd4 {[%clk 0:02:56]} 6. cxd4 {[%clk 0:03:02.8]} 6... d6 {[%clk 0:02:56.2]}
7. Bd3 {[%clk 0:03:01.8]} 7... Nb4 {[%clk 0:02:50.3]} 8. Bb5+ {[%clk 0:02:51.4]}
8... Bd7 {[%clk 0:02:50]} 9. Bxd7+ {[%clk 0:02:51.4]} 9... Nxd7 {[%clk
0:02:46.5]} 10. exd6 {[%clk 0:02:50.1]} 10... Bxd6 {[%clk 0:02:42.8]} 11. O-O
{[%clk 0:02:50.4]} 11... O-O {[%clk 0:02:36]} 12. Nc3 {[%clk 0:02:50.3]} 12...
h6 {[%clk 0:02:25.4]} 13. Re1 {[%clk 0:02:46.3]} 13... a6 {[%clk 0:02:12.2]} 14.
a3 {[%clk 0:02:39]} 14... Nd5 {[%clk 0:02:08.7]} 15. Nxd5 {[%clk 0:02:39.4]}
15... exd5 {[%clk 0:02:09.6]} 16. Qb3 {[%clk 0:02:37.9]} 16... Nb6 {[%clk
0:02:01.2]} 17. Bd2 {[%clk 0:02:31.7]} 17... Rb8 {[%clk 0:01:15]} 18. Ba5 {[%clk
0:02:27.5]} 18... Bc7 {[%clk 0:01:13.3]} 19. Rac1 {[%clk 0:02:23.7]} 19... Nc4
{[%clk 0:01:11.7]} 20. Bxc7 {[%clk 0:02:23.3]} 20... Qxc7 {[%clk 0:01:12.6]} 21.
Qb4 {[%clk 0:02:08.2]} 21... Qb6 {[%clk 0:00:42.5]} 22. Rxc4 {[%clk 0:02:06.8]}
1-0

[Event "*** SCC Grand Prix: Titled Tuesday Blitz"]
[Site "Chess.com"]
[Date "2020.06.23"]
[Round "4"]
[White "DrVelja"]
[Black "Thipsay"]
[Result "0-1"]
[WhiteElo "2814"]
[BlackElo "2484"]
[TimeControl "180+1"]
[EndTime "10:36:29 PDT"]
[Termination "Thipsay won by checkmate"]

1. e4 {[%clk 0:02:58.4]} 1... e5 {[%clk 0:02:59.3]} 2. Nf3 {[%clk 0:02:57]} 2...
Nc6 {[%clk 0:02:59.5]} 3. Bb5 {[%clk 0:02:57.3]} 3... a6 {[%clk 0:02:59.6]} 4.
Ba4 {[%clk 0:02:57.8]} 4... Nf6 {[%clk 0:02:59.8]} 5. O-O {[%clk 0:02:58]} 5...
Be7 {[%clk 0:02:59.9]} 6. d3 {[%clk 0:02:55.2]} 6... b5 {[%clk 0:02:59.4]} 7.
Bb3 {[%clk 0:02:55.4]} 7... O-O {[%clk 0:02:58.5]} 8. a4 {[%clk 0:02:53.2]} 8...
Rb8 {[%clk 0:02:57.4]} 9. axb5 {[%clk 0:02:51.6]} 9... axb5 {[%clk 0:02:56.7]}
10. Nc3 {[%clk 0:02:52.5]} 10... d6 {[%clk 0:02:56.2]} 11. Nd5 {[%clk
0:02:51.5]} 11... Nxd5 {[%clk 0:02:53.8]} 12. Bxd5 {[%clk 0:02:52.4]} 12... Bd7
{[%clk 0:02:46.5]} 13. c3 {[%clk 0:02:49.5]} 13... Bf6 {[%clk 0:02:44.6]} 14.
Be3 {[%clk 0:02:41.1]} 14... Ne7 {[%clk 0:02:43.8]} 15. Ba7 {[%clk 0:02:15.7]}
15... Nxd5 {[%clk 0:02:41.4]} 16. Bxb8 {[%clk 0:02:16]} 16... Nf4 {[%clk
0:02:35.3]} 17. Ba7 {[%clk 0:02:15.3]} 17... c5 {[%clk 0:02:35.2]} 18. d4 {[%clk
0:02:09.7]} 18... Qc7 {[%clk 0:02:32.3]} 19. dxc5 {[%clk 0:02:09.2]} 19... dxc5
{[%clk 0:02:31.9]} 20. Bxc5 {[%clk 0:02:09.4]} 20... Bh3 {[%clk 0:02:20.8]} 21.
Bxf8 {[%clk 0:02:02.6]} 21... Bxg2 {[%clk 0:02:16.8]} 22. Ra8 {[%clk 0:01:47.8]}
22... Qb7 {[%clk 0:02:08.4]} 23. Qa1 {[%clk 0:01:43.1]} 23... h6 {[%clk
0:01:58.8]} 24. Nd2 {[%clk 0:01:17.7]} 24... Bxe4 {[%clk 0:01:57.5]} 25. Nxe4
{[%clk 0:01:07.4]} 25... Qxe4 {[%clk 0:01:57.3]} 26. Bc5+ {[%clk 0:01:08.3]}
26... Kh7 {[%clk 0:01:55.6]} 27. Qb1 {[%clk 0:01:05.5]} 27... Ne2# {[%clk
0:01:54.6]} 0-1

[Event "*** SCC Grand Prix: Titled Tuesday Blitz"]
[Site "Chess.com"]
[Date "2020.06.23"]
[Round "4"]
[White "Ginger_GM"]
[Black "KNCP_719"]
[Result "1-0"]
[WhiteElo "2666"]
[BlackElo "2469"]
[TimeControl "180+1"]
[EndTime "10:36:34 PDT"]
[Termination "Ginger_GM won by resignation"]

1. e4 {[%clk 0:03:00.9]} 1... e5 {[%clk 0:02:59.9]} 2. f4 {[%clk 0:03:00.2]}
2... exf4 {[%clk 0:02:58.1]} 3. Bc4 {[%clk 0:02:57.2]} 3... Nf6 {[%clk
0:02:51.8]} 4. Nc3 {[%clk 0:02:56.4]} 4... Bb4 {[%clk 0:02:40.8]} 5. Nge2 {[%clk
0:02:54.8]} 5... O-O {[%clk 0:02:29.1]} 6. O-O {[%clk 0:02:50.8]} 6... Re8
{[%clk 0:02:24.9]} 7. Nxf4 {[%clk 0:02:38]} 7... c6 {[%clk 0:02:18.5]} 8. Nh5
{[%clk 0:02:21.9]} 8... d5 {[%clk 0:02:06.4]} 9. Nxf6+ {[%clk 0:02:20.9]} 9...
gxf6 {[%clk 0:02:07.3]} 10. exd5 {[%clk 0:02:11.6]} 10... Kh8 {[%clk 0:00:45.8]}
11. Qh5 {[%clk 0:02:01.5]} 1-0

[Event "*** SCC Grand Prix: Titled Tuesday Blitz"]
[Site "Chess.com"]
[Date "2020.06.23"]
[Round "4"]
[White "wannabe2700"]
[Black "kintoho"]
[Result "1-0"]
[WhiteElo "2692"]
[BlackElo "2360"]
[TimeControl "180+1"]
[EndTime "10:36:37 PDT"]
[Termination "wannabe2700 won on time"]

1. b3 {[%clk 0:03:00.9]} 1... d5 {[%clk 0:02:55.8]} 2. Bb2 {[%clk 0:03:01.8]}
2... Nf6 {[%clk 0:02:55.8]} 3. e3 {[%clk 0:03:01.8]} 3... Bf5 {[%clk 0:02:55.2]}
4. f4 {[%clk 0:03:02.2]} 4... e6 {[%clk 0:02:54.7]} 5. Nf3 {[%clk 0:03:02.6]}
5... Nbd7 {[%clk 0:02:53.4]} 6. Bd3 {[%clk 0:02:58.3]} 6... Bxd3 {[%clk
0:02:51.4]} 7. cxd3 {[%clk 0:02:59.2]} 7... Be7 {[%clk 0:02:45.9]} 8. O-O {[%clk
0:02:58.7]} 8... O-O {[%clk 0:02:46]} 9. Nc3 {[%clk 0:02:57.2]} 9... c6 {[%clk
0:02:41.3]} 10. Qe1 {[%clk 0:02:55.7]} 10... c5 {[%clk 0:02:32.1]} 11. Ne2
{[%clk 0:02:53.7]} 11... Ne8 {[%clk 0:02:29.8]} 12. Qg3 {[%clk 0:02:40]} 12...
Bf6 {[%clk 0:02:29.3]} 13. Ne5 {[%clk 0:02:39.9]} 13... Nxe5 {[%clk 0:02:28]}
14. fxe5 {[%clk 0:02:36.4]} 14... Bh4 {[%clk 0:02:26.5]} 15. Qh3 {[%clk
0:02:30.4]} 15... Bg5 {[%clk 0:01:33.6]} 16. Rf3 {[%clk 0:02:20.8]} 1-0

[Event "*** SCC Grand Prix: Titled Tuesday Blitz"]
[Site "Chess.com"]
[Date "2020.06.23"]
[Round "4"]
[White "DenLaz"]
[Black "Raffaello123"]
[Result "1-0"]
[WhiteElo "2706"]
[BlackElo "2478"]
[TimeControl "180+1"]
[EndTime "10:36:41 PDT"]
[Termination "DenLaz won by resignation"]

1. d4 {[%clk 0:03:00.3]} 1... Nf6 {[%clk 0:02:59.6]} 2. c4 {[%clk 0:02:58.2]}
2... c5 {[%clk 0:02:59.7]} 3. d5 {[%clk 0:02:57.8]} 3... e6 {[%clk 0:03:00.1]}
4. Nc3 {[%clk 0:02:57]} 4... exd5 {[%clk 0:03:01]} 5. cxd5 {[%clk 0:02:57.9]}
5... d6 {[%clk 0:03:01.7]} 6. e4 {[%clk 0:02:58.3]} 6... g6 {[%clk 0:03:02]} 7.
Nf3 {[%clk 0:02:58.4]} 7... a6 {[%clk 0:03:01.1]} 8. Bd3 {[%clk 0:02:57.3]} 8...
b5 {[%clk 0:02:54.9]} 9. a3 {[%clk 0:02:55.8]} 9... Bg7 {[%clk 0:02:55]} 10. h4
{[%clk 0:02:55.1]} 10... Bg4 {[%clk 0:02:54.7]} 11. Ne2 {[%clk 0:02:42.9]} 11...
Qe7 {[%clk 0:02:39.8]} 12. Nh2 {[%clk 0:02:40.7]} 12... Bxe2 {[%clk 0:02:31.9]}
13. Qxe2 {[%clk 0:02:41.6]} 13... O-O {[%clk 0:02:18]} 14. Bg5 {[%clk
0:02:38.6]} 14... h6 {[%clk 0:02:15.2]} 15. Bd2 {[%clk 0:02:34.3]} 15... Re8
{[%clk 0:02:04.6]} 16. O-O {[%clk 0:02:24.9]} 16... Nxd5 {[%clk 0:01:51]} 17.
Qf3 {[%clk 0:02:21.5]} 17... Nb6 {[%clk 0:01:43.3]} 18. e5 {[%clk 0:02:18]}
18... dxe5 {[%clk 0:01:37.3]} 19. h5 {[%clk 0:02:09.5]} 19... e4 {[%clk
0:01:35.5]} 20. Bxe4 {[%clk 0:02:08.1]} 20... Qxe4 {[%clk 0:01:21.7]} 21. Rae1
{[%clk 0:02:06.4]} 21... f5 {[%clk 0:01:09.6]} 22. hxg6 {[%clk 0:01:51.3]} 22...
Nc6 {[%clk 0:01:01.5]} 23. Rxe4 {[%clk 0:01:49.7]} 23... Rxe4 {[%clk 0:01:02.4]}
24. Qxf5 {[%clk 0:01:48.2]} 24... Rae8 {[%clk 0:00:59.2]} 25. Qf7+ {[%clk
0:01:43.9]} 25... Kh8 {[%clk 0:00:59]} 26. Bxh6 {[%clk 0:01:44.8]} 1-0

[Event "*** SCC Grand Prix: Titled Tuesday Blitz"]
[Site "Chess.com"]
[Date "2020.06.23"]
[Round "4"]
[White "Man-Chuk"]
[Black "Th3_Hound"]
[Result "1-0"]
[WhiteElo "2843"]
[BlackElo "2549"]
[TimeControl "180+1"]
[EndTime "10:36:49 PDT"]
[Termination "Man-Chuk won by resignation"]

1. c4 {[%clk 0:03:00.9]} 1... c5 {[%clk 0:02:59.3]} 2. Nc3 {[%clk 0:03:00.6]}
2... Nc6 {[%clk 0:02:59.7]} 3. g3 {[%clk 0:03:00.8]} 3... g6 {[%clk 0:02:59.7]}
4. Bg2 {[%clk 0:03:01.1]} 4... Bg7 {[%clk 0:03:00.3]} 5. d3 {[%clk 0:03:01]}
5... d6 {[%clk 0:03:00.6]} 6. Qd2 {[%clk 0:03:01]} 6... e6 {[%clk 0:02:58.8]} 7.
b3 {[%clk 0:02:59.6]} 7... Nge7 {[%clk 0:02:59.4]} 8. Bb2 {[%clk 0:02:59.7]}
8... O-O {[%clk 0:02:59.9]} 9. h4 {[%clk 0:02:59.9]} 9... h6 {[%clk 0:02:58.1]}
10. Nh3 {[%clk 0:02:32.8]} 10... b6 {[%clk 0:02:50.3]} 11. h5 {[%clk 0:02:31.7]}
11... g5 {[%clk 0:02:46.2]} 12. Nxg5 {[%clk 0:01:52.7]} 12... hxg5 {[%clk
0:02:46.1]} 13. h6 {[%clk 0:01:53.1]} 13... Bd4 {[%clk 0:02:25.2]} 14. Qxg5+
{[%clk 0:01:40.4]} 14... Kh8 {[%clk 0:02:15.3]} 15. e3 {[%clk 0:01:40.4]} 15...
Rg8 {[%clk 0:02:01.5]} 16. Qh4 {[%clk 0:01:40.4]} 16... Bxc3+ {[%clk 0:01:37]}
17. Bxc3+ {[%clk 0:01:40]} 17... Kh7 {[%clk 0:01:32.8]} 18. Qf6 {[%clk
0:01:27.6]} 18... Qe8 {[%clk 0:01:19.9]} 19. Be4+ {[%clk 0:01:18.6]} 19... Ng6
{[%clk 0:01:15.9]} 20. Qg7+ {[%clk 0:01:12.4]} 20... Rxg7 {[%clk 0:01:14.9]} 21.
hxg7+ {[%clk 0:01:13.3]} 21... Kg8 {[%clk 0:01:14.7]} 22. Rh8+ {[%clk
0:01:12.9]} 1-0

[Event "*** SCC Grand Prix: Titled Tuesday Blitz"]
[Site "Chess.com"]
[Date "2020.06.23"]
[Round "4"]
[White "econpower"]
[Black "Salem-AR"]
[Result "0-1"]
[WhiteElo "2734"]
[BlackElo "2924"]
[TimeControl "180+1"]
[EndTime "10:36:52 PDT"]
[Termination "Salem-AR won by resignation"]

1. c4 {[%clk 0:03:00.9]} 1... g6 {[%clk 0:02:36.5]} 2. g3 {[%clk 0:02:58.2]}
2... Bg7 {[%clk 0:02:36.5]} 3. Bg2 {[%clk 0:02:58.5]} 3... c5 {[%clk 0:02:36.8]}
4. Nc3 {[%clk 0:02:58.7]} 4... Nc6 {[%clk 0:02:36.4]} 5. e3 {[%clk 0:02:59]}
5... Nf6 {[%clk 0:02:30.1]} 6. Nge2 {[%clk 0:02:58.9]} 6... O-O {[%clk
0:02:29.5]} 7. O-O {[%clk 0:02:59.5]} 7... d6 {[%clk 0:02:29.6]} 8. a3 {[%clk
0:02:59.4]} 8... Rb8 {[%clk 0:02:29.1]} 9. b4 {[%clk 0:02:58.7]} 9... Bd7 {[%clk
0:02:26.9]} 10. Rb1 {[%clk 0:02:57.6]} 10... b6 {[%clk 0:02:18.8]} 11. d3 {[%clk
0:02:56]} 11... Qc8 {[%clk 0:02:17]} 12. b5 {[%clk 0:02:50.5]} 12... Na5 {[%clk
0:02:12.6]} 13. e4 {[%clk 0:02:50.6]} 13... Bh3 {[%clk 0:02:04.2]} 14. Bd2
{[%clk 0:02:39.5]} 14... Bxg2 {[%clk 0:02:03]} 15. Kxg2 {[%clk 0:02:39.5]} 15...
Rd8 {[%clk 0:01:52.7]} 16. Nd5 {[%clk 0:02:19.4]} 16... Nxd5 {[%clk 0:01:51.2]}
17. exd5 {[%clk 0:02:10.5]} 17... Nb7 {[%clk 0:01:51.2]} 18. Bc3 {[%clk
0:02:06.6]} 18... e5 {[%clk 0:01:48.6]} 19. f4 {[%clk 0:02:03.1]} 19... f5
{[%clk 0:01:45.7]} 20. Qd2 {[%clk 0:02:00.9]} 20... Qc7 {[%clk 0:01:41.9]} 21.
Rbe1 {[%clk 0:02:00.6]} 21... Rf8 {[%clk 0:01:39.8]} 22. Ng1 {[%clk 0:02:01.2]}
22... Rbe8 {[%clk 0:01:38.5]} 23. Nf3 {[%clk 0:02:01.7]} 23... Nd8 {[%clk
0:01:35.2]} 24. Qb2 {[%clk 0:01:59.6]} 24... Nf7 {[%clk 0:01:35]} 25. Re2 {[%clk
0:01:57.2]} 25... Re7 {[%clk 0:01:35.6]} 26. Rfe1 {[%clk 0:01:57.1]} 26... Rfe8
{[%clk 0:01:36.2]} 27. a4 {[%clk 0:01:53.4]} 27... h6 {[%clk 0:01:35.9]} 28. a5
{[%clk 0:01:48.9]} 28... bxa5 {[%clk 0:01:32.5]} 29. Qa1 {[%clk 0:01:47.6]}
29... a4 {[%clk 0:01:26.7]} 30. Qxa4 {[%clk 0:01:40.5]} 30... e4 {[%clk
0:01:22.2]} 0-1

[Event "*** SCC Grand Prix: Titled Tuesday Blitz"]
[Site "Chess.com"]
[Date "2020.06.23"]
[Round "4"]
[White "CyberneticLion"]
[Black "temus_galaktionov"]
[Result "0-1"]
[WhiteElo "2448"]
[BlackElo "2695"]
[TimeControl "180+1"]
[EndTime "10:36:52 PDT"]
[Termination "temus_galaktionov won by resignation"]

1. e4 {[%clk 0:03:00.9]} 1... c6 {[%clk 0:03:00.9]} 2. d4 {[%clk 0:02:59.6]}
2... g6 {[%clk 0:03:01.8]} 3. Nc3 {[%clk 0:02:53.2]} 3... Bg7 {[%clk 0:03:02.3]}
4. Bf4 {[%clk 0:02:53.1]} 4... d6 {[%clk 0:03:03.2]} 5. Qd2 {[%clk 0:02:52.5]}
5... Nd7 {[%clk 0:03:04.1]} 6. O-O-O {[%clk 0:02:51.7]} 6... e5 {[%clk
0:03:03.5]} 7. dxe5 {[%clk 0:02:51.4]} 7... dxe5 {[%clk 0:03:04.4]} 8. Be3
{[%clk 0:02:46.4]} 8... Ngf6 {[%clk 0:03:04.1]} 9. f3 {[%clk 0:02:40.8]} 9...
O-O {[%clk 0:03:03.7]} 10. Bh6 {[%clk 0:02:40.4]} 10... Qa5 {[%clk 0:03:02.7]}
11. Bxg7 {[%clk 0:02:39.7]} 11... Kxg7 {[%clk 0:03:03.6]} 12. Kb1 {[%clk
0:02:38.2]} 12... b5 {[%clk 0:03:03]} 13. h4 {[%clk 0:02:31.1]} 13... h6 {[%clk
0:02:59.3]} 14. g4 {[%clk 0:02:29.6]} 14... Nh7 {[%clk 0:02:56.8]} 15. g5 {[%clk
0:02:21.3]} 15... h5 {[%clk 0:02:56.3]} 16. f4 {[%clk 0:02:21.8]} 16... b4
{[%clk 0:02:53.9]} 17. Nce2 {[%clk 0:02:19.2]} 17... Nc5 {[%clk 0:02:54]} 18.
fxe5 {[%clk 0:02:13.4]} 18... Be6 {[%clk 0:02:52.8]} 19. b3 {[%clk 0:02:09.4]}
19... Rfd8 {[%clk 0:02:52]} 20. Qc1 {[%clk 0:02:05]} 20... Nxe4 {[%clk
0:02:48.7]} 21. Nh3 {[%clk 0:01:17.9]} 21... Qxe5 {[%clk 0:02:40.5]} 22. Nhf4
{[%clk 0:01:14.8]} 22... Nf2 {[%clk 0:02:31.4]} 23. Nd3 {[%clk 0:01:06.1]} 23...
Rxd3 {[%clk 0:02:27.3]} 24. Rxd3 {[%clk 0:00:56.6]} 24... Nxh1 {[%clk 0:02:26]}
25. Qe1 {[%clk 0:00:46.3]} 25... Bf5 {[%clk 0:02:16.9]} 26. Rf3 {[%clk
0:00:36.1]} 26... Re8 {[%clk 0:02:08]} 0-1

[Event "*** SCC Grand Prix: Titled Tuesday Blitz"]
[Site "Chess.com"]
[Date "2020.06.23"]
[Round "4"]
[White "Philosopherrr"]
[Black "hectorfiori"]
[Result "1-0"]
[WhiteElo "2481"]
[BlackElo "2320"]
[TimeControl "180+1"]
[EndTime "10:36:53 PDT"]
[Termination "Philosopherrr won by resignation"]

1. e4 {[%clk 0:01:40.1]} 1... c5 {[%clk 0:02:59.2]} 2. Nf3 {[%clk 0:01:39.6]}
2... e6 {[%clk 0:02:50.6]} 3. d4 {[%clk 0:01:31.8]} 3... cxd4 {[%clk 0:02:51.5]}
4. Nxd4 {[%clk 0:01:32.7]} 4... Nf6 {[%clk 0:02:50.2]} 5. Nc3 {[%clk 0:01:33.2]}
5... Bb4 {[%clk 0:02:50.8]} 6. Bd3 {[%clk 0:01:32.6]} 6... e5 {[%clk 0:02:50.6]}
7. Nb3 {[%clk 0:01:31.8]} 7... d5 {[%clk 0:02:47.4]} 8. exd5 {[%clk 0:01:32]}
8... Nxd5 {[%clk 0:02:48.1]} 9. O-O {[%clk 0:01:32.1]} 9... Nc6 {[%clk
0:02:46.4]} 10. Nxd5 {[%clk 0:01:29.5]} 10... Qxd5 {[%clk 0:02:46.6]} 11. c3
{[%clk 0:01:28.2]} 11... Be7 {[%clk 0:02:44.8]} 12. Be3 {[%clk 0:01:25.3]} 12...
Be6 {[%clk 0:02:43.7]} 13. Qc2 {[%clk 0:01:24]} 13... Qd7 {[%clk 0:02:08.6]} 14.
Rad1 {[%clk 0:01:23]} 14... Qc7 {[%clk 0:02:07.8]} 15. Bf5 {[%clk 0:01:22.3]}
15... Bxf5 {[%clk 0:01:40.8]} 16. Qxf5 {[%clk 0:01:16.4]} 16... O-O {[%clk
0:01:41]} 17. Rd7 {[%clk 0:01:13]} 17... Qc8 {[%clk 0:01:40.5]} 18. Rfd1 {[%clk
0:01:12.4]} 18... Bf6 {[%clk 0:01:38.9]} 19. Nc5 {[%clk 0:01:10.5]} 19... b6
{[%clk 0:01:31.2]} 20. Ne4 {[%clk 0:01:10.2]} 20... Ne7 {[%clk 0:01:27.5]} 21.
Nxf6+ {[%clk 0:01:08.4]} 21... gxf6 {[%clk 0:01:28.4]} 22. Qxf6 {[%clk
0:01:08.5]} 22... Ng6 {[%clk 0:01:19.4]} 23. Bh6 {[%clk 0:01:06.6]} 1-0

[Event "*** SCC Grand Prix: Titled Tuesday Blitz"]
[Site "Chess.com"]
[Date "2020.06.23"]
[Round "4"]
[White "dpruess"]
[Black "LiverpooL174"]
[Result "0-1"]
[WhiteElo "2478"]
[BlackElo "2678"]
[TimeControl "180+1"]
[EndTime "10:36:57 PDT"]
[Termination "LiverpooL174 won by resignation"]

1. e4 {[%clk 0:03:00.9]} 1... c6 {[%clk 0:02:59]} 2. d4 {[%clk 0:03:00.2]} 2...
d5 {[%clk 0:02:59.9]} 3. f3 {[%clk 0:02:54.6]} 3... Qb6 {[%clk 0:02:59.3]} 4.
Nc3 {[%clk 0:02:18.7]} 4... dxe4 {[%clk 0:02:59.4]} 5. fxe4 {[%clk 0:02:17.8]}
5... e5 {[%clk 0:03:00]} 6. Nf3 {[%clk 0:02:09.3]} 6... exd4 {[%clk 0:02:58.6]}
7. Qxd4 {[%clk 0:02:05.4]} 7... Qxd4 {[%clk 0:02:57.6]} 8. Nxd4 {[%clk
0:02:06.3]} 8... Bc5 {[%clk 0:02:56.1]} 9. Nf5 {[%clk 0:02:02.2]} 9... Bxf5
{[%clk 0:02:55.2]} 10. exf5 {[%clk 0:02:02.4]} 10... Nf6 {[%clk 0:02:55.8]} 11.
Bg5 {[%clk 0:02:01.4]} 11... Nbd7 {[%clk 0:02:53.2]} 12. O-O-O {[%clk
0:02:00.4]} 12... O-O {[%clk 0:02:53.8]} 13. Bc4 {[%clk 0:01:51.3]} 13... h6
{[%clk 0:02:54.1]} 14. Bh4 {[%clk 0:01:40.4]} 14... Rfe8 {[%clk 0:02:52.7]} 15.
Rhe1 {[%clk 0:01:38.1]} 15... b5 {[%clk 0:02:52.3]} 16. Bb3 {[%clk 0:01:37.2]}
16... a5 {[%clk 0:02:50.9]} 17. a3 {[%clk 0:01:20]} 17... a4 {[%clk 0:02:49.5]}
18. Ba2 {[%clk 0:01:19.4]} 18... Kf8 {[%clk 0:02:48]} 19. h3 {[%clk 0:01:09.6]}
19... Rxe1 {[%clk 0:02:46.3]} 20. Rxe1 {[%clk 0:01:09]} 20... Re8 {[%clk
0:02:47]} 21. Kd2 {[%clk 0:01:03.7]} 21... Rxe1 {[%clk 0:02:44.1]} 22. Bxe1
{[%clk 0:01:03.3]} 22... Bd6 {[%clk 0:02:42.6]} 23. g4 {[%clk 0:00:57.5]} 23...
Ne5 {[%clk 0:02:42.6]} 24. Ke3 {[%clk 0:00:45.2]} 24... Bc5+ {[%clk 0:02:41.2]}
25. Ke2 {[%clk 0:00:45]} 25... Ke7 {[%clk 0:02:40]} 26. Bg3 {[%clk 0:00:44.7]}
26... Ned7 {[%clk 0:02:37.7]} 27. Kd3 {[%clk 0:00:38.9]} 27... Bg1 {[%clk
0:02:35.8]} 28. Ne4 {[%clk 0:00:36.2]} 28... Nxe4 {[%clk 0:02:35.6]} 29. Kxe4
{[%clk 0:00:37]} 29... Nc5+ {[%clk 0:02:35]} 30. Kf3 {[%clk 0:00:31.8]} 30...
Bd4 {[%clk 0:02:35.6]} 31. c3 {[%clk 0:00:29.1]} 31... Bf6 {[%clk 0:02:36.3]}
32. Bb1 {[%clk 0:00:26.9]} 32... Nb3 {[%clk 0:02:34.2]} 33. Bf4 {[%clk 0:00:21]}
33... Bg5 {[%clk 0:02:31.6]} 34. Be4 {[%clk 0:00:20.5]} 34... Kd7 {[%clk
0:02:30.1]} 35. Be5 {[%clk 0:00:17.9]} 35... Nd2+ {[%clk 0:02:27.9]} 0-1

[Event "*** SCC Grand Prix: Titled Tuesday Blitz"]
[Site "Chess.com"]
[Date "2020.06.23"]
[Round "4"]
[White "killer311"]
[Black "bait_or_mate"]
[Result "0-1"]
[WhiteElo "2404"]
[BlackElo "2620"]
[TimeControl "180+1"]
[EndTime "10:37:00 PDT"]
[Termination "bait_or_mate won by resignation"]

1. d4 {[%clk 0:03:00.9]} 1... Nf6 {[%clk 0:02:59.8]} 2. c4 {[%clk 0:03:01.4]}
2... e6 {[%clk 0:02:59.4]} 3. Nc3 {[%clk 0:03:00.7]} 3... Bb4 {[%clk 0:02:58]}
4. e3 {[%clk 0:03:00.3]} 4... O-O {[%clk 0:02:54.4]} 5. Bd2 {[%clk 0:03:00.2]}
5... d5 {[%clk 0:02:54.1]} 6. Nf3 {[%clk 0:03:00]} 6... b6 {[%clk 0:02:54.2]} 7.
cxd5 {[%clk 0:03:00.3]} 7... exd5 {[%clk 0:02:53.8]} 8. Bd3 {[%clk 0:03:01.2]}
8... a6 {[%clk 0:02:52.9]} 9. Rc1 {[%clk 0:03:00.7]} 9... Nbd7 {[%clk
0:02:52.2]} 10. O-O {[%clk 0:03:00.4]} 10... Bd6 {[%clk 0:02:51.8]} 11. e4
{[%clk 0:02:52.1]} 11... dxe4 {[%clk 0:02:45.7]} 12. Nxe4 {[%clk 0:02:53]} 12...
Be7 {[%clk 0:02:16.6]} 13. Bf4 {[%clk 0:02:50.2]} 13... Nd5 {[%clk 0:02:14.2]}
14. Bg3 {[%clk 0:02:50.2]} 14... Bb7 {[%clk 0:02:12.9]} 15. Re1 {[%clk
0:02:48.4]} 15... Re8 {[%clk 0:02:04.8]} 16. a3 {[%clk 0:02:43.2]} 16... Rc8
{[%clk 0:02:00.4]} 17. Qb3 {[%clk 0:02:34.7]} 17... N7f6 {[%clk 0:01:44.8]} 18.
Ne5 {[%clk 0:02:28.4]} 18... Nxe4 {[%clk 0:01:35]} 19. Bxe4 {[%clk 0:02:29.3]}
19... Bf6 {[%clk 0:01:34.5]} 20. Nc6 {[%clk 0:02:23]} 20... Bxc6 {[%clk
0:01:33.4]} 21. Rxc6 {[%clk 0:02:23.9]} 21... Bxd4 {[%clk 0:01:19.5]} 22. Qd3
{[%clk 0:01:52]} 22... Nf6 {[%clk 0:01:14.8]} 23. h3 {[%clk 0:01:35.9]} 23...
Nxe4 {[%clk 0:00:56.8]} 24. Rc4 {[%clk 0:01:34.1]} 24... Bxf2+ {[%clk 0:00:56]}
0-1